bitfinex/quotes_ETHUSD_20230831
["timestamp","ask_amount","ask_price","bid_price","bid_amount"]
[1693509718113,4.54061,1651.8,1651.3,17.8176248]
[1693509718315,9.08122,1651.8,1651.3,13.2757548]
[1693509718551,6.13831523,1651.9,1651.3,2.5152]
[1693509718860,13.62161,1651.8,1651.3,7.05707]
[1693509720263,17.1523509,1651.8,1651.3,2.5152]
[1693509720856,17.1523509,1651.8,1651.0,7.722318]
[1693509720857,13.62381,1651.6,1651.0,7.722318]
[1693509721061,1.362381,1651.5,1651.1,15.30797727]
[1693509721220,6.70596,1651.6,1651.3,4.54173]
[1693509721422,6.70596,1651.6,1651.2,4.54194]
[1693509721423,11.24712,1651.6,1651.2,4.54194]
[1693509721633,2.1648,1651.6,1651.2,9.0843]
[1693509721852,6.70604,1651.6,1651.3,1.05280998]
[1693509722054,11.24728,1651.6,1651.3,1.05280998]
[1693509723095,6.965238,1652.0,1651.4,2.142]
[1693509723253,4.54023,1651.9,1651.5,9.0823]
[1693509723465,4.614868,1652.0,1651.5,13.62362]
[1693509723753,9.154948,1652.0,1651.5,13.62362]
[1693509724050,13.695118,1652.0,1651.5,13.62362]
[1693509724285,2.9277433,1651.9,1651.5,4.54127]
[1693509724487,12.75908719,1652.0,1651.5,4.54127]
[1693509724781,9.08054,1651.9,1651.5,4.54127]
[1693509724981,4.54022,1651.9,1651.5,4.54127]
[1693509725353,2.1897,1652.0,1651.6,1.05266559]
[1693509725547,30.6,1652.1,1651.7,15.76416]
[1693509725743,2.1897,1652.3,1651.8,4.77094625]
[1693509725974,2.1897,1652.3,1651.9,13.62027]
[1693509726157,35.13898,1652.4,1651.9,13.62027]
[1693509726363,35.13892,1652.4,1651.9,13.62027]
[1693509726646,35.13892,1652.4,1651.8,8.530636]
[1693509726647,44.8196876,1652.4,1651.8,8.530636]
[1693509726874,50.67534563,1652.4,1651.8,8.530636]
[1693509727362,0.6029976,1652.3,1651.8,8.530636]
[1693509727568,13.61848,1652.2,1651.8,8.530636]
[1693509727877,13.61848,1652.2,1651.8,6.95422]
[1693509728746,9.07895,1652.2,1651.8,6.95422]
[1693509729007,2.1043,1652.3,1651.9,2.142]
[1693509729215,35.13891,1652.4,1651.9,2.142]
[1693509729216,30.6,1652.4,1652.0,9.07978]
[1693509729429,11.501509,1652.5,1652.0,16.5474733]
[1693509729587,13.61617,1652.5,1652.0,9.33658063]
[1693509729788,9.07736,1652.5,1652.0,9.33649063]
[1693509730011,9.07736,1652.5,1652.0,10.94869733]
[1693509730321,3.16893354,1652.6,1652.1,2.142]
[1693509730485,30.6,1652.7,1652.2,15.75954]
[1693509730819,30.6,1652.7,1652.2,17.62826833]
[1693509731335,2.424033,1652.8,1652.5,13.61571]
[1693509731619,39.67485,1653.0,1652.5,15.75771]
[1693509731830,39.67485,1653.0,1652.5,9.07714]
[1693509731831,44.21227,1653.0,1652.5,9.07714]
[1693509732029,4.421227,1652.9,1652.3,11.9309233]
[1693509732328,4.421227,1652.9,1652.3,2.3222]
[1693509732329,18.15166,1652.8,1652.3,2.3222]
[1693509732816,20.47716,1652.8,1652.3,2.3222]
[1693509733118,11.40122,1652.8,1652.3,11.40043]
[1693509733270,6.86325,1652.8,1652.3,15.93955]
[1693509733471,4.53768,1652.9,1652.3,21.2207683]
[1693509734147,4.53728,1653.0,1652.4,5.9837433]
[1693509734271,6.96346,1653.1,1652.5,13.61505]
[1693509734272,2.4265,1653.1,1652.5,13.61505]
[1693509734477,0.101,1653.1,1652.6,3.056]
[1693509734699,0.101,1653.1,1652.7,13.61367]
[1693509736712,0.101,1653.1,1652.9,13.61241]
[1693509737124,0.101,1653.1,1652.9,16.5401533]
[1693509737489,0.101,1653.1,1653.0,2.9277433]
[1693509737821,0.101,1653.1,1653.0,18.19335863]
[1693509738577,0.101,1653.1,1653.0,21.24935863]
[1693509738788,0.101,1653.4,1653.0,27.60735863]
[1693509738989,0.101,1653.4,1653.0,21.24935863]
[1693509740074,0.101,1653.4,1653.0,27.60735863]
[1693509740278,0.101,1653.4,1653.1,15.93043478]
[1693509740526,0.101,1653.4,1653.1,9.07384]
[1693509741424,4.63711,1653.4,1653.1,9.07384]
[1693509741782,0.101,1653.4,1653.2,7.4643933]
[1693509742016,0.101,1653.4,1653.2,7.4643833]
[1693509742218,13.70931,1653.4,1652.9,3.0]
[1693509742532,13.7093,1653.4,1652.9,4.53737]
[1693509742825,4.6372,1653.4,1652.9,13.61231]
[1693509743025,13.7095,1653.4,1652.8,3.056]
[1693509743191,13.7095,1653.4,1652.8,2.9277433]
[1693509743527,16.0248,1653.4,1652.8,2.9277433]
[1693509743686,16.0248,1653.4,1652.8,7.4654833]
[1693509743883,2.4163,1653.4,1652.9,3.67429163]
[1693509744121,2.4163,1653.4,1653.0,13.61118]
[1693509744321,0.101,1653.4,1653.1,2.9277433]
[1693509744617,0.101,1653.4,1653.2,4.53665]
[1693509744923,0.101,1653.4,1653.1,7.4645133]
[1693509744924,4.63711,1653.4,1653.1,7.4645133]
[1693509745222,0.101,1653.4,1653.2,0.74645133]
[1693509745542,0.101,1653.4,1653.3,21.0732633]
[1693509745681,0.101,1653.4,1653.3,9.07276]
[1693509745881,0.101,1653.4,1653.3,4.53638]
[1693509746082,0.101,1653.4,1653.2,0.74645133]
[1693509746294,9.1732,1653.4,1653.2,0.74645133]
[1693509746521,0.101,1653.4,1653.0,3.056]
[1693509746702,4.63715,1653.4,1652.9,5.28397833]
[1693509746907,13.7094,1653.4,1652.9,0.74654833]
[1693509747135,13.7094,1653.4,1652.9,4.53746]
[1693509747296,18.8982433,1653.4,1652.9,4.53747]
[1693509747494,9.8259433,1653.4,1652.9,9.07494]
[1693509747698,2.3621,1653.4,1652.9,16.5401533]
[1693509747927,0.101,1653.4,1653.0,5.9837433]
[1693509748097,0.101,1653.4,1653.1,14.20898433]
[1693509748320,0.101,1653.4,1653.1,17.13672763]
[1693509748620,0.101,1653.4,1653.2,5.9837433]
[1693509748826,0.101,1653.7,1653.3,18.14552]
[1693509749121,0.101,1653.7,1653.4,5.9837433]
[1693509749323,0.101,1653.7,1653.5,14.20586433]
[1693509750181,0.101,1653.7,1653.6,19.5903933]
[1693509750638,0.101,1653.7,1653.6,22.5903933]
[1693509751000,0.101,1653.7,1653.6,19.5903933]
[1693509752137,0.101,1653.7,1653.6,26.4283933]
[1693509752286,0.101,1653.8,1653.6,36.94583606]
[1693509752615,0.101,1653.8,1653.7,23.44384]
[1693509752786,0.101,1653.8,1653.7,26.3715833]
[1693509756230,0.101,1653.8,1653.7,30.9068633]
[1693509756531,0.101,1654.1,1653.9,3.0]
[1693509756733,0.101,1654.1,1654.0,38.5500433]
[1693509757032,0.101,1654.1,1654.0,38.23054699]
[1693509757994,0.343055,1654.5,1654.0,42.76500699]
[1693509758191,0.101,1654.5,1654.3,9.8877433]
[1693509758430,0.101,1654.5,1654.4,16.65608]
[1693509758606,0.101,1654.5,1654.4,19.5838233]
[1693509758928,0.101,1654.5,1654.4,20.66219763]
[1693509759303,0.101,1654.5,1654.4,27.02019763]
[1693509759738,0.101,1654.5,1654.4,20.66219763]
[1693509759948,0.101,1654.5,1654.4,16.12883763]
[1693509760243,0.101,1654.5,1654.4,20.66219763]
[1693509760461,0.101,1654.5,1654.4,27.02019763]
[1693509760641,0.101,1654.5,1654.4,30.02019763]
[1693509760847,0.101,1654.5,1654.4,20.18219763]
[1693509761164,0.101,1654.5,1654.4,15.64883763]
[1693509761328,0.101,1654.5,1654.4,20.18219763]
[1693509762143,0.101,1654.5,1654.4,15.64883763]
[1693509762341,0.101,1654.5,1654.4,20.18219763]
[1693509763030,0.101,1654.5,1654.4,30.62219763]
[1693509763231,0.101,1654.6,1654.5,23.01327]
[1693509763535,0.101,1654.6,1654.5,30.62138763]
[1693509764248,0.101,1654.8,1654.5,33.62138763]
[1693509764452,0.101,1654.8,1654.7,9.414]
[1693509764649,0.101,1654.8,1654.7,34.0739033]
[1693509764840,0.101,1654.8,1654.7,34.5539033]
[1693509765039,0.101,1654.8,1654.7,38.46254763]
[1693509765355,0.101,1654.8,1654.7,21.95746763]
[1693509765516,0.101,1654.8,1654.7,9.89238763]
[1693509765713,0.101,1654.8,1654.7,5.9837433]
[1693509765916,0.101,1654.8,1654.7,15.0488233]
[1693509766557,0.101,1654.8,1654.7,19.5813633]
[1693509766763,0.101,1654.8,1654.7,20.1833633]
[1693509766966,0.101,1654.8,1654.7,27.0213633]
[1693509767151,0.101,1654.8,1654.7,30.17677563]
[1693509768695,0.101,1655.1,1655.0,23.2606]
[1693509768842,0.101,1655.1,1655.0,39.1383433]
[1693509769041,0.101,1655.1,1655.0,42.1383433]
[1693509769569,0.101,1655.4,1655.0,42.1383433]
[1693509769746,0.101,1655.4,1655.3,3.056]
[1693509769952,0.101,1655.4,1655.3,24.1073433]
[1693509771487,0.101,1655.4,1655.3,30.4653433]
[1693509771650,0.101,1655.5,1655.3,39.0782433]
[1693509771979,0.101,1655.8,1655.6,6.358]
[1693509772166,0.101,1655.8,1655.7,31.05931763]
[1693509772470,0.101,1655.8,1655.7,29.52951763]
[1693509772768,0.101,1655.8,1655.7,30.00951763]
[1693509772987,0.101,1655.8,1655.7,14.59191763]
[1693509773173,0.101,1655.8,1655.7,18.64171763]
[1693509773357,0.101,1655.8,1655.7,14.11191763]
[1693509773561,0.101,1655.8,1655.7,9.58211763]
[1693509773871,0.101,1655.8,1655.7,14.11191763]
[1693509774039,0.101,1655.8,1655.7,11.11191763]
[1693509774453,0.101,1655.8,1655.5,3.056]
[1693509774751,9.16006,1655.8,1655.4,4.5305]
[1693509775161,0.101,1655.8,1655.4,16.5194833]
[1693509776250,13.68973,1655.8,1655.3,8.58685]
[1693509776492,13.68973,1655.8,1655.3,5.53077]
[1693509776692,17.42938096,1655.8,1655.3,5.53077]
[1693509777689,11.28133,1655.8,1655.3,5.53077]
[1693509778002,11.28133,1655.8,1655.3,16.0454133]
[1693509778394,6.75173,1655.8,1655.3,20.5763133]
[1693509778588,6.75181,1655.8,1655.3,16.0454133]
[1693509778797,11.28142,1655.8,1655.3,16.0454133]
[1693509779003,2.2222,1655.8,1655.5,9.414]
[1693509779306,2.2222,1655.8,1655.7,3.056]
[1693509779505,2.2222,1655.8,1655.7,15.0433433]
[1693509779723,2.2222,1655.8,1655.7,19.5731433]
[1693509779874,2.2222,1655.8,1655.7,22.61926463]
[1693509780076,0.101,1655.8,1655.7,22.61926463]
[1693509780710,0.101,1656.2,1655.8,6.358]
[1693509780911,0.101,1656.2,1656.1,13.58613]
[1693509781110,0.101,1656.2,1656.1,16.5138733]
[1693509781289,0.101,1656.2,1656.1,18.59815842]
[1693509781977,0.101,1656.2,1656.1,24.95615842]
[1693509782203,0.101,1656.2,1656.1,25.43615842]
[1693509782515,0.101,1656.2,1656.1,28.43615842]
[1693509782814,2.1967,1656.4,1656.1,29.03815842]
[1693509782989,0.101,1656.7,1656.3,18.11264]
[1693509783192,0.101,1656.7,1656.4,19.5674133]
[1693509783398,0.101,1656.7,1656.4,7.58389]
[1693509783599,6.82244,1656.7,1656.2,16.30942866]
[1693509783911,6.82244,1656.7,1656.3,4.52803]
[1693509784098,11.34963,1656.7,1656.3,4.52803]
[1693509784500,4.52747,1656.6,1656.2,7.18049196]
[1693509784705,4.62873,1656.5,1656.2,7.18049196]
[1693509787214,4.62865,1656.5,1656.2,7.18049196]
[1693509787786,0.101,1656.5,1656.2,11.70888196]
[1693509788125,0.101,1656.5,1656.3,5.6988282]
[1693509788285,0.101,1656.5,1656.3,1.1708882]
[1693509789188,0.101,1656.5,1656.2,11.70878196]
[1693509789189,9.15624,1656.5,1656.2,1.19674866]
[1693509789423,13.68387,1656.5,1656.0,3.056]
[1693509789620,16.6116133,1656.5,1655.8,10.58539]
[1693509789782,14.2868676,1656.5,1655.7,4.5298]
[1693509789986,5.8738976,1656.4,1655.7,2.9277433]
[1693509790192,9.05692,1656.2,1655.7,4.12651163]
[1693509790688,13.58538,1656.2,1655.7,4.12651163]
[1693509791520,13.58538,1656.2,1655.5,3.056]
[1693509791678,3.0,1656.1,1655.3,1.0]
[1693509791888,3.0,1656.1,1655.4,2.9277433]
[1693509791889,13.58808,1655.9,1655.4,2.9277433]
[1693509792484,13.58808,1655.9,1655.3,1.0]
[1693509792709,13.58808,1655.9,1655.3,3.9277433]
[1693509792922,1.358808,1655.8,1655.3,1.0]
[1693509793248,22.6497,1655.7,1655.3,1.0]
[1693509793547,13.59105,1655.5,1655.3,1.0]
[1693509794314,7.53026,1655.6,1655.3,5.53068]
[1693509794315,3.0,1655.6,1655.3,5.53068]
[1693509794515,4.53035,1655.5,1655.3,1.0]
[1693509794718,13.59105,1655.5,1655.3,1.0]
[1693509795310,9.0607,1655.5,1655.3,1.0]
[1693509795533,13.59105,1655.5,1655.3,1.0]
[1693509795825,9.0607,1655.5,1655.3,1.0]
[1693509796197,3.0,1655.6,1655.3,1.0]
[1693509796423,11.22335,1655.8,1655.3,10.0618]
[1693509796424,6.69359,1655.8,1655.3,10.0618]
[1693509796723,11.22312,1655.8,1655.3,6.84268]
[1693509796934,15.75265,1655.8,1655.3,6.84268]
[1693509797296,15.75265,1655.8,1655.3,1.0]
[1693509800514,23.2099233,1655.8,1655.3,1.0]
[1693509800720,8.9277433,1655.7,1655.3,1.0]
[1693509800906,31.65065,1655.6,1655.3,1.0]
[1693509801243,18.12248,1655.4,1655.3,1.0]
[1693509801457,20.58780209,1655.4,1655.3,1.0]
[1693509801599,28.11842209,1655.4,1655.3,1.0]
[1693509802417,23.58780209,1655.4,1655.3,1.0]
[1693509802849,28.11842209,1655.4,1655.3,1.0]
[1693509803151,23.58780209,1655.4,1655.3,1.0]
[1693509803363,28.11842209,1655.4,1655.3,1.0]
[1693509803717,23.58780209,1655.4,1655.3,1.0]
[1693509804226,16.59186,1655.4,1655.3,1.0]
[1693509804447,12.06124,1655.4,1655.3,1.0]
[1693509804777,7.53062,1655.4,1655.3,1.0]
[1693509805117,12.06124,1655.4,1655.3,1.0]
[1693509805319,5.47780079,1655.6,1655.3,1.0]
[1693509805521,7.31372248,1655.8,1655.3,10.614903]
[1693509805821,4.53014,1655.6,1655.3,6.084003]
[1693509806049,4.52984,1655.7,1655.3,10.614903]
[1693509806255,9.05968,1655.7,1655.3,6.084003]
[1693509808758,9.67988248,1655.7,1655.3,6.084003]
[1693509808940,9.67988248,1655.7,1655.3,5.5309]
[1693509809865,0.62020248,1655.7,1655.3,12.9895433]
[1693509810030,0.62020248,1655.9,1655.4,2.9277433]
[1693509810387,10.60273267,1656.0,1655.5,9.06042]
[1693509810671,5.14928248,1656.0,1655.6,3.8337853]
[1693509810869,5.14928248,1656.0,1655.6,8.3636653]
[1693509811728,6.07351267,1656.0,1655.6,8.3636653]
[1693509812252,10.60259267,1656.0,1655.6,8.3636653]
[1693509812462,0.62020248,1655.9,1655.7,0.83636653]
[1693509812753,5.14946248,1655.9,1655.7,0.83636653]
[1693509814345,5.14946248,1655.9,1655.6,8.3636653]
[1693509815232,0.62020248,1655.9,1655.6,8.3636653]
[1693509815602,0.62020248,1655.9,1655.6,12.8937353]
[1693509815869,0.92423019,1656.0,1655.6,12.8937353]
[1693509816383,0.92423019,1656.2,1655.7,3.056]
[1693509816537,0.92423019,1656.2,1655.9,4.5292]
[1693509816734,0.92423019,1656.2,1655.8,7.7626533]
[1693509816735,5.45271019,1656.2,1655.8,7.7626533]
[1693509816950,11.23461885,1656.2,1655.8,4.52952]
[1693509817147,0.92423019,1656.1,1655.8,7.4572633]
[1693509817346,5.78190866,1656.2,1655.8,11.9867933]
[1693509817347,2.17765885,1656.2,1655.8,11.9867933]
[1693509818481,0.92423019,1656.1,1655.8,11.9867933]
[1693509819149,9.05742,1656.1,1655.6,7.565912]
[1693509819344,9.98165019,1656.1,1655.7,5.2863812]
[1693509819648,9.98165019,1656.1,1655.7,0.7565912]
[1693509819886,14.51036019,1656.1,1655.7,0.7565912]
[1693509820263,0.92423019,1656.0,1655.4,2.3448]
[1693509820607,19.04207019,1655.9,1655.2,2.13]
[1693509820746,20.89849645,1655.9,1655.3,2.9277433]
[1693509821250,0.92423019,1655.8,1655.3,2.9277433]
[1693509821451,2.2568,1655.9,1655.5,2.13]
[1693509821694,2.2568,1655.9,1655.5,11.19051]
[1693509822155,2.2568,1655.9,1655.5,12.762601]
[1693509822349,6.78608,1655.9,1655.5,12.762601]
[1693509822655,6.78608,1655.9,1655.5,6.102251]
[1693509822656,7.71031019,1655.9,1655.5,6.102251]
[1693509822855,12.23959019,1655.9,1655.5,6.102251]
[1693509823580,13.49301885,1655.9,1655.5,6.102251]
[1693509824366,0.92423019,1655.8,1655.5,6.102251]
[1693509825263,9.98331019,1655.8,1655.3,7.4585933]
[1693509825468,15.76628885,1655.8,1655.3,7.4585933]
[1693509825683,15.76628885,1655.8,1655.2,2.13]
[1693509825997,0.92423019,1655.7,1655.2,4.53104]
[1693509826183,9.06037,1655.6,1655.2,5.900414]
[1693509826549,9.06037,1655.6,1655.1,9.1627]
[1693509826550,13.59058,1655.6,1655.1,2.5015]
[1693509826750,14.51481019,1655.6,1655.1,5.4292433]
[1693509826955,0.92423019,1655.5,1655.1,5.4292433]
[1693509827176,9.06136,1655.4,1655.0,0.1713]
[1693509827688,13.59204,1655.4,1655.0,0.65307]
[1693509827889,14.51627019,1655.4,1655.0,0.1713]
[1693509828288,0.92423019,1655.3,1655.0,0.1713]
[1693509828499,13.59351,1655.2,1655.0,0.1713]
[1693509829066,9.06234,1655.2,1655.0,0.1713]
[1693509829266,4.53117,1655.2,1655.0,0.1713]
[1693509829474,9.06234,1655.2,1655.0,0.1713]
[1693509830190,14.51774019,1655.2,1655.0,0.1713]
[1693509830489,16.54796008,1655.2,1655.0,0.1713]
[1693509830722,18.67796008,1655.2,1655.0,0.1713]
[1693509830920,19.93138874,1655.2,1655.0,0.1713]
[1693509831252,17.80138874,1655.2,1655.0,0.1713]
[1693509831595,0.92423019,1655.1,1655.0,0.1713]
[1693509831794,16.51168906,1655.1,1655.0,0.1713]
[1693509832999,16.51168906,1655.1,1654.1,2.13]
[1693509833000,29.91007083,1655.1,1654.1,2.13]
[1693509833301,13.59771,1654.7,1654.2,5.2496433]
[1693509833525,15.410727,1654.7,1654.2,5.2496433]
[1693509833724,13.59771,1654.7,1654.2,5.2496433]
[1693509833928,15.90281,1654.7,1654.2,9.7835433]
[1693509834820,15.90281,1654.7,1654.2,5.2496433]
[1693509836332,20.43538,1654.7,1654.0,2.13]
[1693509836517,20.43538,1654.7,1654.0,5.4016433]
[1693509836700,18.13322,1654.5,1654.0,5.4016433]
[1693509836894,13.59991,1654.5,1654.0,5.4016433]
[1693509837303,2.043538,1654.6,1654.0,11.7596433]
[1693509837504,7.53285,1654.6,1654.0,22.9585633]
[1693509837897,7.53285,1654.6,1654.0,27.4930233]
[1693509838127,11.37048,1654.7,1654.1,2.9277433]
[1693509838332,2.3051,1654.7,1654.2,13.60107]
[1693509838626,2.3051,1654.7,1654.2,16.5288133]
[1693509838826,2.3051,1654.7,1654.2,19.03049463]
[1693509839128,2.3051,1654.7,1654.4,13.59993]
[1693509840203,2.3051,1654.7,1654.2,4.53387]
[1693509840204,11.37026,1654.7,1654.2,4.53387]
[1693509840397,11.37026,1654.7,1654.2,9.06774]
[1693509840622,11.37026,1654.7,1654.2,10.42792]
[1693509841342,6.83764,1654.7,1654.2,14.96183]
[1693509841496,2.3051,1654.7,1654.2,14.96183]
[1693509841700,2.3051,1654.7,1654.2,24.2475733]
[1693509842433,9.952519,1655.0,1654.3,2.9277433]
[1693509842434,2.420609,1655.0,1654.3,2.9277433]
[1693509842639,6.16893146,1655.0,1654.5,13.59918]
[1693509842811,6.16893146,1655.0,1654.5,16.5269233]
[1693509842812,2.1773,1654.9,1654.5,16.5269233]
[1693509843011,9.70931,1654.9,1654.5,9.06612]
[1693509843417,16.37132,1654.9,1654.4,11.41544]
[1693509843734,1.637132,1654.8,1654.4,11.41544]
[1693509843910,1.637132,1654.8,1654.4,6.88226]
[1693509844116,10.702092,1654.8,1654.4,6.88226]
[1693509846048,6.169612,1654.8,1654.4,11.41562]
[1693509846213,1.637132,1654.8,1654.4,15.94898]
[1693509846419,5.1773,1654.9,1654.4,15.94898]
[1693509846816,5.1773,1654.9,1654.1,4.53406]
[1693509846817,2.13,1654.8,1654.1,4.53406]
[1693509847018,4.53284,1654.6,1654.1,11.58124]
[1693509847326,4.53284,1654.6,1653.8,4.63485]
[1693509847327,13.59846,1654.6,1653.8,4.63485]
[1693509847526,2.13,1654.3,1653.8,0.1]
[1693509847721,13.6021,1654.2,1653.8,0.1]
[1693509848141,4.534,1654.2,1653.8,4.63489]
[1693509848345,9.068,1654.2,1653.8,4.63489]
[1693509848531,9.068,1654.2,1653.8,0.1]
[1693509848710,13.602,1654.2,1653.8,0.1]
[1693509848915,1.3602,1654.1,1653.8,0.1]
[1693509849139,4.53446,1654.0,1653.8,0.1]
[1693509849341,9.06892,1654.0,1653.8,0.1]
[1693509850651,4.53446,1654.0,1653.8,0.1]
[1693509851053,4.5342,1654.1,1653.8,4.63501]
[1693509851555,4.5342,1654.1,1653.8,0.1]
[1693509851556,10.187014,1654.1,1653.8,0.1]
[1693509851849,14.721214,1654.1,1653.8,0.1]
[1693509852545,14.721214,1654.1,1653.8,4.63499]
[1693509852546,1.118614,1654.1,1653.8,4.63499]
[1693509852860,4.118614,1654.1,1653.8,9.17]
[1693509853354,3.0,1654.1,1653.8,13.70501]
[1693509853568,4.53349,1654.4,1653.8,13.70501]
[1693509853569,2.1227,1654.4,1653.8,13.70501]
[1693509854262,6.65613,1654.4,1653.8,13.70501]
[1693509854420,2.1227,1654.4,1653.9,2.9277433]
[1693509854621,2.1227,1654.4,1654.0,4.53432]
[1693509854951,11.18947,1654.4,1654.0,4.53432]
[1693509855155,1.118947,1654.3,1654.0,4.53432]
[1693509855352,1.118947,1654.3,1653.9,4.53458]
[1693509855353,10.186487,1654.3,1653.9,4.53458]
[1693509856053,14.720257,1654.3,1653.9,4.53462]
[1693509856230,14.720257,1654.3,1653.8,0.1]
[1693509856231,16.850257,1654.3,1653.8,0.1]
[1693509856437,13.60272,1654.1,1653.8,0.1]
[1693509856661,4.53336,1654.4,1653.9,2.9277433]
[1693509856955,9.27326261,1655.0,1654.0,29.03]
[1693509856956,4.53212,1654.9,1654.0,29.03]
[1693509857144,5.28016246,1655.0,1654.3,13.60032]
[1693509857457,0.74832246,1655.0,1654.4,2.13]
[1693509857658,2.420781,1654.9,1654.5,13.59861]
[1693509857857,0.74832246,1655.0,1654.5,13.59861]
[1693509858458,9.06313,1655.1,1654.5,13.59861]
[1693509858757,4.53155,1655.1,1654.5,13.59861]
[1693509858958,9.06299,1655.1,1654.5,13.59861]
[1693509859120,4.53144,1655.1,1654.5,13.59861]
[1693509859321,9.06288,1655.1,1654.5,13.59861]
[1693509859555,9.06288,1655.1,1654.3,6.89044]
[1693509859556,11.19442,1654.9,1654.3,6.89044]
[1693509859754,15.72663,1654.9,1654.3,6.89044]
[1693509859930,9.06524,1654.7,1654.3,6.89044]
[1693509860855,4.53256,1654.7,1654.3,6.89044]
[1693509861057,9.63999,1654.8,1654.3,11.42407]
[1693509861262,9.63999,1654.8,1654.3,17.553478]
[1693509863120,5.1077,1654.8,1654.3,17.553478]
[1693509863325,5.1077,1654.8,1654.3,19.683478]
[1693509863558,5.1077,1654.8,1654.3,19.523478]
[1693509863760,6.64002,1654.8,1654.3,17.393478]
[1693509863939,8.510458,1654.8,1654.3,17.393478]
[1693509864141,13.042778,1654.8,1654.3,17.393478]
[1693509865082,3.978138,1654.8,1654.3,17.393478]
[1693509865547,8.510418,1654.8,1654.3,17.393478]
[1693509867077,3.978138,1654.8,1654.3,17.393478]
[1693509867279,3.978138,1654.8,1654.3,15.7977]
[1693509867439,5.9277433,1654.7,1653.8,7.23910313]
[1693509867641,11.19656,1654.5,1653.9,7.01879]
[1693509867957,13.59984,1654.5,1653.9,7.01882]
[1693509868146,15.626112,1654.5,1653.9,13.46516833]
[1693509868464,17.857012,1654.5,1653.9,13.46516833]
[1693509869444,3.0,1654.4,1653.9,2.4842]
[1693509869662,13.60131,1654.3,1653.9,2.4842]
[1693509870482,13.60131,1654.3,1653.8,0.1]
[1693509870483,3.0,1654.2,1653.8,0.1]
[1693509870693,9.06848,1654.1,1653.8,0.1]
[1693509871181,9.06848,1654.1,1653.8,4.63492]
[1693509871490,9.06848,1654.1,1653.8,0.1]
[1693509871673,10.728724,1654.1,1653.8,0.1]
[1693509872588,15.262964,1654.1,1653.8,0.1]
[1693509872958,10.728724,1654.1,1653.8,0.1]
[1693509873358,10.728724,1654.1,1653.8,4.63499]
[1693509873675,1.660244,1654.1,1653.8,13.70501]
[1693509874786,9.83472,1654.2,1653.8,13.70501]
[1693509875176,14.36876,1654.2,1653.8,9.17]
[1693509875363,9.83472,1654.2,1653.8,9.17]
[1693509875565,2.3008,1654.2,1653.8,13.70501]
[1693509875771,6.559492,1654.5,1653.8,13.70501]
[1693509875980,3.0744438,1654.4,1653.8,13.70501]
[1693509876183,10.5355871,1654.4,1653.8,13.70501]
[1693509877270,3.0,1654.3,1653.8,13.70501]
[1693509877757,3.0744438,1654.4,1653.8,13.70501]
[1693509878457,3.0744438,1654.4,1653.8,16.6327533]
[1693509878690,3.0744438,1654.4,1654.0,13.60296]
[1693509878866,7.6078038,1654.4,1654.0,4.53432]
[1693509879071,12.1411838,1654.4,1654.0,4.53432]
[1693509879306,16.6745638,1654.4,1653.9,4.53459]
[1693509879503,16.6745638,1654.4,1653.9,9.06917]
[1693509879711,18.64202018,1654.4,1653.9,9.06917]
[1693509880725,18.64202018,1654.4,1653.9,9.06931]
[1693509882390,18.64202018,1654.4,1653.9,4.53458]
[1693509882705,22.50604167,1654.4,1653.8,0.1]
[1693509883025,9.0681,1654.2,1653.8,4.63499]
[1693509883203,0.90681,1654.1,1653.8,4.63499]
[1693509883412,5.44112,1654.1,1653.8,4.63499]
[1693509884435,4.53431,1654.1,1653.8,4.63499]
[1693509885433,9.06862,1654.1,1653.8,4.63499]
[1693509885580,9.06862,1654.1,1653.8,0.1]
[1693509885920,13.60293,1654.1,1653.8,0.1]
[1693509886226,9.06862,1654.1,1653.8,0.1]
[1693509886372,10.428878,1654.1,1653.8,0.1]
[1693509886579,9.06862,1654.1,1653.8,0.1]
[1693509886777,9.06862,1654.1,1653.8,4.63496]
[1693509888894,4.53431,1654.1,1653.8,4.63496]
[1693509889229,4.53422,1654.1,1653.8,9.16997]
[1693509889624,7.76961819,1654.2,1653.8,9.16997]
[1693509889778,9.12746347,1654.2,1653.8,9.16997]
[1693509890713,10.37583439,1654.2,1653.8,9.16997]
[1693509891035,14.90986439,1654.2,1653.8,9.16997]
[1693509891183,14.90986439,1654.2,1653.8,4.63496]
[1693509891386,5.47051819,1654.1,1653.8,4.63496]
[1693509891632,4.53424,1654.1,1653.8,4.63496]
[1693509891779,5.47051819,1654.1,1653.8,4.63496]
[1693509892421,0.93627819,1654.1,1653.8,9.16997]
[1693509893079,5.84179439,1654.2,1653.8,13.70498]
[1693509893434,0.93627819,1654.2,1653.8,13.70498]
[1693509893584,0.93627819,1654.3,1653.9,2.9277433]
[1693509893791,0.93627819,1654.3,1654.0,13.6032]
[1693509894014,0.93627819,1654.3,1654.1,2.9277433]
[1693509894196,0.93627819,1654.4,1654.2,13.60173]
[1693509894411,0.93627819,1654.4,1654.2,15.92106933]
[1693509895699,2.18464911,1654.5,1654.2,20.45497933]
[1693509896027,0.93627819,1654.5,1654.2,20.45497933]
[1693509896633,0.93627819,1654.5,1654.3,2.9277433]
[1693509896783,0.93627819,1654.5,1654.4,13.60008]
[1693509896977,0.93627819,1654.5,1654.4,15.70620333]
[1693509897226,2.18464911,1654.6,1654.4,15.70620333]
[1693509898343,0.93627819,1654.7,1654.4,22.36956333]
[1693509898680,2.18464911,1654.8,1654.4,31.65530663]
[1693509898928,0.93627819,1654.8,1654.5,2.13]
[1693509899100,1.24837092,1655.0,1654.7,2.13]